[Event "55th Rubinstein Memorial-C 2019"]
[Site "Polanica-Zdroj"]
[Date "2019.08.25"]
[Round "9.29"]
[White "Wrona, Florian"]
[Black "Lukasik, Zuzanna"]
[Result "1-0"]
[ECO "B42"]
[WhiteElo "1606"]
[BlackElo "1444"]
[Annotator "NA"]
[PlyCount "143"]
[EventDate "2019.08.17"]
[EventType "swiss"]
[EventCountry "POL"]
[SourceTitle "playchess.com"]
[Source "ChessBase"]
[SourceQuality "1"]
[TimeControl "40/5400+30:1800+30"]

1. e4 {[%emt 0:00:00]} c5 {[%emt 0:00:00]} 2. Nf3 {[%emt 0:00:00]} e6 {[%emt 0:00:00]} 3. d4 {[%emt 0:00:00]} cxd4 {[%emt 0:00:22]} 4. Nxd4 {[%emt 0:00:00]} a6 {[%emt 0:00:16]} 5. Bd3 {[%emt 0:00:00]} Nf6 {[%emt 0:00:09]} 6. O-O {[%emt 0:00:17]} d6 {[%emt 0:00:05]} 7. c4 {[%emt 0:00:10]} b6 {[%emt 0:00:23]} 8. Nc3 {[%emt 0:00:14]} Bb7 {[%emt 0:00:06]} 9. Be3 {[%emt 0:00:41]} g6 {[%emt 0:00:56]} 10. f4 {[%emt 0:07:02]} Bg7 {[%emt 0:00:50]} 11. Qc2 {[%emt 0:02:26]} Qc7 {[%emt 0:01:16]} 12. h3 {[%emt 0:03:05]} O-O {[%emt 0:00:31]} 13. Qf2 {[%emt 0:01:34]} Nbd7 {[%emt 0:01:19]} 14. Nde2 {[%emt 0:08:26]} Nc5 {[%emt 0:03:11]} 15. Bxc5 {[%emt 0:01:01]} bxc5 {[%emt 0:01:12]} 16. Ng3 {[%emt 0:03:45]} Nd7 {[%emt 0:01:12]} 17. Nge2 {[%emt 0:04:20]} f5 {[%emt 0:01:11]} 18. Rab1 {[%emt 0:02:58]} Nf6 {[%emt 0:02:57]} 19. Qf3 {[%emt 0:09:20]} fxe4 {[%emt 0:04:27]} 20. Bxe4 {[%emt 0:00:40]} Nxe4 {[%emt 0:01:36]} 21. Nxe4 {[%emt 0:00:02]} Qc6 {[%emt 0:00:59]} 22. Nxd6 {[%emt 0:18:31]} Qxd6 {[%emt 0:02:12]} 23. Qxb7 {[%emt 0:00:02]} Rab8 {[%emt 0:00:30]} 24. Qe4 {[%emt 0:00:03]} Rxb2 {[%emt 0:01:19]} 25. Rbd1 {[%emt 0:14:43]} Qe7 {[%emt 0:06:01]} 26. a3 {[%emt 0:01:02]} Rb3 {[%emt 0:02:38]} 27. Rf3 {[%emt 0:04:27]} Rxf3 {[%emt 0:00:32]} 28. gxf3 {[%emt 0:02:20]} Re8 {[%emt 0:02:14]} 29. Qc6 {[%emt 0:01:52]} a5 {[%emt 0:02:28]} 30. Rd7 {[%emt 0:02:57]} Qf8 {[%emt 0:01:20]} 31. Qc7 {[%emt 0:06:06]} e5 {[%emt 0:02:26]} 32. fxe5 {[%emt 0:05:16]} Bxe5 {[%emt 0:01:03]} 33. Qc6 {[%emt 0:00:38]} Qf6 {[%emt 0:09:28]} 34. Qd5+ {[%emt 0:02:22]} Qe6 {[%emt 0:03:36]} 35. Qxe6+ {[%emt 0:00:37]} Rxe6 {[%emt 0:00:10]} 36. Rd8+ {[%emt 0:00:07]} Kf7 {[%emt 0:01:01]} 37. Kf2 {[%emt 0:00:14]} Bc7 {[%emt 0:02:19]} 38. Rd7+ {[%emt 0:01:03]} Re7 {[%emt 0:00:05]} 39. Rd5 {[%emt 0:00:02]} Re5 {[%emt 0:00:25]} 40. Rd7+ {[%emt 0:00:10]} Re7 {[%emt 0:00:13]} 41. Rd5 {[%emt 0:30:01]} Re5 {[%emt 0:31:07]} 42. Nc3 {[%emt 0:00:26]} Rxd5 {[%emt 0:01:41]} 43. Nxd5 {[%emt 0:00:01]} Be5 {[%emt 0:00:59]} 44. Ke3 {[%emt 0:00:18]} g5 {[%emt 0:01:06]} 45. Ke4 {[%emt 0:00:18]} Ke6 {[%emt 0:00:34]} 46. a4 {[%emt 0:00:31]} h6 {[%emt 0:01:07]} 47. Nb6 {[%emt 0:00:48]} Bc7 {[%emt 0:00:41]} 48. Nd5 {[%emt 0:01:53]} Be5 {[%emt 0:00:29]} 49. Ne3 {[%emt 0:00:40]} Bg7 {[%emt 0:02:19]} 50. Nc2 {[%emt 0:00:54]} Bb2 {[%emt 0:00:38]} 51. Ne1 {[%emt 0:00:16]} Be5 {[%emt 0:02:10]} 52. Nd3 {[%emt 0:00:14]} Bd4 {[%emt 0:01:32]} 53. Nc1 {[%emt 0:01:01]} Bc3 {[%emt 0:00:39]} 54. Nd3 {[%emt 0:00:30]} Bd4 {[%emt 0:00:19]} 55. f4 {[%emt 0:00:09]} gxf4 {[%emt 0:00:24]} 56. Nxf4+ {[%emt 0:00:22]} Kd6 {[%emt 0:03:33]} 57. Kf5 {[%emt 0:00:11]} Be3 {[%emt 0:00:45]} 58. Nd5 {[%emt 0:00:48]} Bc1 {[%emt 0:00:37]} 59. Nf6 {[%emt 0:00:45]} Ke7 {[%emt 0:01:07]} 60. Ne4 {[%emt 0:00:45]} Be3 {[%emt 0:01:03]} 61. Ke5 {[%emt 0:00:28]} Kf7 {[%emt 0:00:51]} 62. Kf5 {[%emt 0:00:18]} Ke7 {[%emt 0:00:45]} 63. Nf6 {[%emt 0:00:11]} Kf7 64. Ne4 {[%emt 0:00:34]} Ke7 {[%emt 0:01:51]} 65. Ke5 {[%emt 0:00:46]} Kf7 {[%emt 0:01:24]} 66. Nd6+ {[%emt 0:00:03]} Kg6 {[%emt 0:00:23]} 67. Nb7 {[%emt 0:00:27]} Kh5 {[%emt 0:00:38]} 68. Nxa5 {[%emt 0:00:45]} Bd4+ {[%emt 0:00:37]} 69. Kf5 {[%emt 0:00:27]} Kh4 {[%emt 0:01:03]} 70. Nc6 {[%emt 0:00:30]} Kxh3 {[%emt 0:01:48]} 71. a5 {[%emt 0:00:11]} h5 {[%emt 0:00:54]} 72. a6 {[%emt 0:00:02]} 1-0

[Event "55th Rubinstein Memorial-C 2019"]
[Site "Polanica-Zdroj"]
[Date "2019.08.25"]
[Round "9.30"]
[White "Ciesielski, Maciej"]
[Black "Karleszko, Karolina"]
[Result "1/2-1/2"]
[ECO "B21"]
[WhiteElo "1486"]
[BlackElo "1596"]
[Annotator "NA"]
[PlyCount "89"]
[EventDate "2019.08.17"]
[EventType "swiss"]
[EventCountry "POL"]
[SourceTitle "playchess.com"]
[Source "ChessBase"]
[SourceQuality "1"]
[TimeControl "40/5400+30:1800+30"]

1. e4 c5 2. f4 e6 3. Nf3 Nc6 4. Nc3 a6 5. d3 d5 6. e5 Be7 7. Be2 b5 8. O-O Nh6 9. d4 Nf5 10. dxc5 Bxc5+ 11. Kh1 Qc7 12. Bd3 Nfe7 13. Qe1 Bb7 14. a3 b4 15. Na4 Nd4 16. Nxd4 Bxd4 17. axb4 Qc6 18. c3 Ba7 19. Qe2 O-O 20. b5 axb5 21. Bxb5 Qc7 22. b4 Nf5 23. Bd3 d4 24. Bxf5 exf5 25. c4 d3 26. Qxd3 Rfd8 27. Qe2 Be4 28. c5 Bd3 29. Qf3 Bxf1 30. Qxf1 Rab8 31. Ba3 Rd4 32. Nc3 Qb7 33. b5 Rbd8 34. b6 Bb8 35. Nb5 Rd2 36. Bb4 Rb2 37. Ba5 Rd5 38. Rc1 Qc6 39. Na7 Bxa7 40. bxa7 Rd7 41. Bb6 Re7 42. Ra1 Re8 43. Rd1 Kf8 44. Rb1 Ra2 45. Ra1 1/2-1/2

[Event "55th Rubinstein Memorial-C 2019"]
[Site "Polanica-Zdroj"]
[Date "2019.08.25"]
[Round "9.31"]
[White "Maslanka, Wojciech"]
[Black "Pudelko, Magdalena"]
[Result "1-0"]
[ECO "B21"]
[WhiteElo "1594"]
[BlackElo "1357"]
[Annotator "NA"]
[PlyCount "57"]
[EventDate "2019.08.17"]
[EventType "swiss"]
[EventCountry "POL"]
[SourceTitle "playchess.com"]
[Source "ChessBase"]
[SourceQuality "1"]
[TimeControl "40/5400+30:1800+30"]

1. e4 {[%emt 0:00:00]} c5 {[%emt 0:00:00]} 2. d4 {[%emt 0:00:00]} cxd4 {[%emt 0:00:00]} 3. c3 {[%emt 0:00:00]} dxc3 {[%emt 0:00:00]} 4. Nxc3 {[%emt 0:00:00]} Nc6 {[%emt 0:00:00]} 5. Nf3 {[%emt 0:00:00]} e6 {[%emt 0:00:04]} 6. Bc4 {[%emt 0:00:00]} Qc7 {[%emt 0:00:04]} 7. Qe2 {[%emt 0:01:45]} Nf6 {[%emt 0:00:31]} 8. O-O {[%emt 0:00:39]} Ng4 {[%emt 0:00:17]} 9. Nb5 {[%emt 0:01:44]} Qb8 {[%emt 0:00:22]} 10. g3 {[%emt 0:02:35]} a6 {[%emt 0:01:11]} 11. Nbd4 {[%emt 0:00:03]} Nxd4 {[%emt 0:00:35]} 12. Nxd4 {[%emt 0:00:02]} Nf6 {[%emt 0:03:17]} 13. e5 {[%emt 0:01:59]} Nd5 {[%emt 0:00:55]} 14. Bxd5 {[%emt 0:00:23]} exd5 {[%emt 0:00:08]} 15. Bf4 {[%emt 0:03:59]} Qa7 {[%emt 0:02:14]} 16. Nf5 {[%emt 0:00:37]} d6 {[%emt 0:17:19]} 17. Nxd6+ {[%emt 0:02:30]} Bxd6 {[%emt 0:00:20]} 18. exd6+ {[%emt 0:00:01]} Be6 {[%emt 0:00:12]} 19. Rac1 {[%emt 0:01:03]} O-O {[%emt 0:00:38]} 20. Rc7 {[%emt 0:01:32]} Rad8 {[%emt 0:15:19]} 21. Rfc1 {[%emt 0:06:35]} Bd7 {[%emt 0:03:13]} 22. Qe7 {[%emt 0:00:57]} Rfe8 {[%emt 0:00:26]} 23. Rxd7 {[%emt 0:00:11]} Rf8 {[%emt 0:01:23]} 24. Rxd8 {[%emt 0:00:07]} h6 {[%emt 0:00:41]} 25. Rxf8+ {[%emt 0:00:43]} Kh7 {[%emt 0:00:04]} 26. Rxf7 {[%emt 0:00:17]} Qa8 {[%emt 0:00:15]} 27. Rxg7+ {[%emt 0:00:10]} Kh8 {[%emt 0:00:05]} 28. Rh7+ {[%emt 0:00:03]} Kg8 {[%emt 0:00:08]} 29. Qf7# {[%emt 0:00:05]} 1-0

[Event "55th Rubinstein Memorial-C 2019"]
[Site "Polanica-Zdroj"]
[Date "2019.08.25"]
[Round "9.32"]
[White "Jeziorny, Janusz"]
[Black "Strugacz, Michal"]
[Result "1/2-1/2"]
[ECO "C42"]
[WhiteElo "1780"]
[BlackElo "1443"]
[Annotator "NA"]
[PlyCount "70"]
[EventDate "2019.08.17"]
[EventType "swiss"]
[EventCountry "POL"]
[SourceTitle "playchess.com"]
[Source "ChessBase"]
[SourceQuality "1"]
[TimeControl "40/5400+30:1800+30"]

1. e4 e5 2. Nf3 Nf6 3. Nxe5 d6 4. Nf3 Nxe4 5. Nc3 Nxc3 6. dxc3 Be7 7. Be3 Be6 8. Qd2 c6 9. Nd4 Nd7 10. f3 Qc7 11. b3 d5 12. Bd3 g6 13. Bf4 Bd6 14. Bxd6 Qxd6 15. O-O Nc5 16. Rfe1 O-O 17. Re2 Bd7 18. b4 Ne6 19. Nxe6 Bxe6 20. Rae1 Rfe8 21. Re5 b6 22. Qe3 Kg7 23. f4 Bd7 24. Qf2 f6 25. Rxe8 Rxe8 26. Rxe8 Bxe8 27. a4 c5 28. bxc5 Qxc5 29. Qxc5 bxc5 30. a5 c4 31. Be2 Kf7 32. Kf2 Ke6 33. Ke3 Kd6 34. Kd4 Bf7 35. Bf3 h5 1/2-1/2

[Event "55th Rubinstein Memorial-C 2019"]
[Site "Polanica-Zdroj"]
[Date "2019.08.25"]
[Round "9.33"]
[White "Grossmann, Ryszard"]
[Black "Lewandowski, Witold"]
[Result "1-0"]
[ECO "A88"]
[WhiteElo "1975"]
[BlackElo "1542"]
[Annotator "NA"]
[PlyCount "90"]
[EventDate "2019.08.17"]
[EventType "swiss"]
[EventCountry "POL"]
[SourceTitle "playchess.com"]
[Source "ChessBase"]
[SourceQuality "1"]
[TimeControl "40/5400+30:1800+30"]

1. d4 f5 2. Nf3 Nf6 3. g3 g6 4. Bg2 Bg7 5. O-O O-O 6. c4 d6 7. Nc3 c6 8. Re1 Ne4 9. Qd3 d5 10. Bf4 e6 11. Rac1 a6 12. c5 g5 13. Be5 Nd7 14. Bxg7 Kxg7 15. b4 g4 16. Ne5 Nxe5 17. dxe5 b5 18. Bxe4 fxe4 19. Qd4 Bb7 20. Rf1 Qg5 21. Rc2 Rf7 22. Nd1 h5 23. Ne3 h4 24. Ng2 hxg3 25. hxg3 Rh8 26. Nh4 Kf8 27. Kg2 Rfh7 28. Rh1 Ke8 29. Rcc1 Kd8 30. Rc3 Kc8 31. Kf1 Rh5 32. Rg1 Rf8 33. f4 gxf3 34. exf3 exf3 35. Re3 Qh6 36. Kf2 Qh7 37. Rd1 Rxh4 38. gxh4 Qf5 39. Rdd3 Qh3 40. Rxf3 Qh2+ 41. Kf1 Rg8 42. Rf2 Qg1+ 43. Ke2 Qb1 44. Rdf3 Qxa2+ 45. Kd3 Qb1+ 1-0